Cogmind - Beta 13 @@@ ROGUE MODE // 2024.05.01 @ 19:07:11 Player: LEWiKK Result: Destroyed by D-53 Grenadier with Mini Grenade Launcher Performance ------------- Evolutions (1) 500 Regions Visited (4) 800 Robots Destroyed (35) 175 Value Destroyed (985) 985 Prototype IDs (4) 80 Alien Tech Used (0) 0 Bonus (0) 0 TOTAL SCORE: 2540 Bonus ------- None Cogmind --------- Core Integrity 0/400 Matter 173/300 Energy 56/100 System Corruption 0% Temperature Cool (12) Movement Hovering (290) Ox3 Location -9/Mines Parts ------- > --- POWER (1) -------- (None) > --- PROPULSION (3) --- Combat Airjet > --- UTILITY (3) ------ High-capacity Storage Unit Sensor Array Terrain Scanner > --- WEAPON (2) ------- Pulse Rifle Maul > --- INVENTORY (20) --- Deuterium Engine Deuterium Engine Deuterium Engine Light Nuclear Core Improved Heat Sink Faulty Experimental Sensor Array Shield Generator Shield Generator Trap Extractor (0/4) Trap Extractor (0/4) Pulse Rifle Pulse Rifle Pulse Rifle Heavy Assault Rifle Enhanced Autogun Enhanced Autogun Maul Peak State ------------ > --- POWER ------------ Deuterium Engine > --- PROPULSION ------- Light Treads Improved Treads > --- UTILITY ---------- Cooling System High-capacity Storage Unit Terrain Scanner > --- WEAPON ----------- Enhanced Autogun Maul > --- INVENTORY -------- Deuterium Engine Deuterium Engine Deuterium Engine Light Nuclear Core Improved Heat Sink Sensor Array Experimental Sensor Array Shield Generator Shield Generator Trap Extractor Trap Extractor Pulse Rifle Pulse Rifle Pulse Rifle Pulse Rifle Heavy Assault Rifle Enhanced Autogun Maul [Rating: 21] Favorites ----------- Power Ion Engine Engine Ion Engine Power Core Light Nuclear Core Propulsion Aluminum Leg Treads Improved Treads Leg Aluminum Leg Hover Unit Combat Airjet Utility Light Armor Plating Device Cooling System Storage High-capacity Storage Unit Protection Light Armor Plating Weapon Maul Energy Gun EM Shotgun Energy Cannon Light EM Pulse Cannon Ballistic Gun Enhanced Autogun Launcher Rocket Launcher Impact Weapon Maul Build | -11 -10 -10 -9 -9 ------- Run | Yrd Mat Min Mat Min Slots Evolved 2 | . . . 2 . Power . | . . . . . Propulsion 1 | . . . 1 . Utility 1 | . . . 1 . Weapon . | . . . . . Parts Attached 33 | . 7 8 11 7 Power 2 | . . . 1 1 Engine 1 | . . . . 1 Core 1 | . . . 1 . Reactor . | . . . . . Propulsion 7 | . 1 2 2 2 Treads 4 | . . 1 2 1 Leg 2 | . 1 1 . . Wheel . | . . . . . Hover 1 | . . . . 1 Flight . | . . . . . Utility 13 | . 3 3 5 2 Device 7 | . 1 1 3 2 Storage 2 | . 1 1 . . Processor . | . . . . . Hackware . | . . . . . Protection 4 | . 1 1 2 . Artifact . | . . . . . Weapon 11 | . 3 3 3 2 Energy Gun 4 | . 1 2 . 1 Energy Cannon 2 | . 1 1 . . Ballistic Gun 3 | . . . 3 . Ballistic Cannon . | . . . . . Launcher 1 | . . . . 1 Special Weapon . | . . . . . Impact Weapon 1 | . 1 . . . Slashing Weapon . | . . . . . Piercing Weapon . | . . . . . Special Melee Weapon . | . . . . . Unidentified Prototypes 2 | . . . 2 . Parts Lost 22 | . 2 6 9 5 Power 3 | . . . 2 1 Propulsion 8 | . 1 3 2 2 Utility 6 | . . 1 4 1 Weapon 5 | . 1 2 1 1 Highest Loss Streak 3 | . 2 3 3 2 To Critical Strikes . | . . . . . Average Slot Usage (%) 82 | . 99 88 71 68 Engine 8 | . 14 14 1 6 Core 1 | . . . 6 . Treads 7 | . . 2 14 14 Leg 10 | . 28 14 . . Device 5 | . 3 . 9 17 Storage 12 | . 14 14 11 11 Protection 10 | . 10 14 10 . Energy Gun 6 | . 12 9 . 1 Energy Cannon 2 | . 4 4 . . Ballistic Gun 3 | . 5 . 7 5 Impact Weapon 11 | . 4 14 11 11 Naked Turns . | . . . . . Heaviest Build 59 | 14 35 55 56 59 Greatest Support 43 | 20 20 20 43 43 Greatest Overweight (x) 17 | . 1 17 2 15 Average Overweight (x) 1 | . . 3 1 1 Largest Inventory Capacity 20 | . 15 20 20 20 Average Capacity 18 | . 12 19 20 20 Most Carried 20 | . 15 16 20 20 Average Carried 15 | . 11 14 16 18 Final Capacity 20 | 8 15 20 20 20 Final Carried 20 | 6 15 13 20 17 Class Distribution -------------------- 100% | Mutant Dominant Class ---------------- Mutant | -10/Materials Mutant | -10/Mines Mutant | -9/Materials Mutant | -9/Mines Resources | -11 -10 -10 -9 -9 ----------- Run | Yrd Mat Min Mat Min Matter Collected 524 | 160 113 86 137 28 Remotely . | . . . . . Salvage Created 1094 | . 226 309 429 130 Parts 48 | . 14 13 17 4 Haulers Intercepted . | . . . . . Recyclers Shooed . | . . . . . Parts Field Recycled . | . . . . . Retrieved Matter . | . . . . . Parts Self-Destructed . | . . . . . Prevented . | . . . . . Kills | -11 -10 -10 -9 -9 ------- Run | Yrd Mat Min Mat Min Combat Hostiles Destroyed 52 | . 7 11 14 20 Melee 14 | . 2 2 7 3 Guns 16 | . 5 5 5 1 Cannons 2 | . . 2 . . AOE 16 | . . . . 16 Classes Destroyed 7 | . 2 . 2 3 Recycler 1 | . . . . 1 Watcher 1 | . . . 1 . Swarmer 12 | . 3 5 4 . Grunt 18 | . 4 6 8 . Sentry 2 | . . . 2 . Demolisher 1 | . . . . 1 Assembled 19 | . . . . 19 Best Kill Streak 19 | . 3 3 5 19 Combat Bots Only 19 | . 3 3 5 19 Max Kills in Single Turn 4 | . 1 1 1 4 Gunslinging . | . . . . . Exploded 4 | . . . . 4 Melee 1 | . 1 1 1 1 Uniques/NPCs Destroyed . | . . . . . Combat | -11 -10 -10 -9 -9 -------- Run | Yrd Mat Min Mat Min Hostile Shots Fired 272 | . 54 74 112 32 Missed 69 | . 8 19 31 11 Damage Taken 2754 | . 559 530 783 882 Core 607 | . 66 117 108 316 Absorbed by Shields 89 | . . . 89 . Core Remaining (%) 63 | 100 . 26 . . Volleys Fired 94 | . 18 25 31 20 Largest 2 | . 2 1 1 1 Hottest 90 | . 90 56 25 63 Shots Fired 112 | . 36 25 31 20 Gun 95 | . 36 18 31 10 Cannon 7 | . . 7 . . Launcher 10 | . . . . 10 Special . | . . . . . Kinetic 44 | . 13 . 31 . Thermal 15 | . 5 . . 10 Explosive 10 | . . . . 10 Electromagnetic 43 | . 18 25 . . Robot Hit Streak 10 | . 4 5 7 10 Robot Miss Streak 7 | . 7 7 3 4 Penetration Max . | . . . . . Secondary Targets . | . . . . . Shots Hit Robots 107 | . 19 23 43 22 Core Hits 70 | . 10 12 12 36 Critical Kills 4 | . . 1 1 2 Critical Parts Destroyed 9 | . . 2 5 2 Critical Strikes 15 | . . 4 6 5 Burn 1 | . . . . 1 Corrupt 1 | . . 1 . . Smash 13 | . . 3 6 4 Melee Attacks 54 | . 6 7 35 6 Impact 54 | . 6 7 35 6 Slashing . | . . . . . Piercing . | . . . . . Sneak Attacks 1 | . . . . 1 Combat Hostiles . | . . . . . Follow-up Attacks . | . . . . . Damage Inflicted 3511 | . 361 456 1142 1552 Guns 726 | . 198 195 168 165 Cannons 73 | . . 73 . . Explosions 1103 | . . . . 1103 Melee 1609 | . 163 188 974 284 Ramming . | . . . . . Kinetic 225 | . 57 . 168 . Thermal 190 | . 25 . . 165 Explosive 1103 | . . . . 1103 Electromagnetic 384 | . 116 268 . . Impact 1609 | . 163 188 974 284 Slashing . | . . . . . Piercing . | . . . . . Highest Corruption . | . . . . . Average Corruption . | . . . . . Corruption Purged . | . . . . . Corruption Blocked . | . . . . . Overload Shots . | . . . . . Overflow Damage 483 | . 24 87 243 129 Projectiles . | . . . . . Explosions 55 | . . . . 55 Melee 428 | . 24 87 243 74 Knockbacks 6 | . . 2 4 . Impact 6 | . . 2 4 . Kinetic . | . . . . . Secondary . | . . . . . Self-Inflicted Damage 131 | . . . . 131 Shots 6 | . . . . 6 Rammed . | . . . . . Targets Rammed . | . . . . . Kicked . | . . . . . Crushed . | . . . . . Highest Temperature 424 | . 424 107 5 108 Average Temperature 93 | . 178 31 2 55 Received Heat Transfer 804 | . 342 162 280 20 Effects 2 | . 2 . . . Shutdowns 1 | . 1 . . . Damage (major) 1 | . 1 . . . Siege Activations . | . . . . . Robots Corrupted 2 | . . 2 . . Combat Hostiles 2 | . . 2 . . Parts Fried 11 | . . 3 8 . Impact Corruptions 15 | . 1 3 8 3 Robots Melted . | . . . . . Combat Hostiles . | . . . . . Parts Melted . | . . . . . Heat Transferred 518 | . 74 . . 444 Parts Sabotaged . | . . . . . Parts Stolen . | . . . . . Parts Stripped . | . . . . . Power Chain Reactions . | . . . . . Alert | -11 -10 -10 -9 -9 ------- Run | Yrd Mat Min Mat Min Peak Influence 177 | . 115 129 177 104 Initial 69 | . . 19 . 69 Average 47 | . 39 37 55 72 Maximum Alert Level . | . . . . . Low Security (%) 100 | . 100 100 100 100 Level 1 . | . . . . . Level 2 . | . . . . . Level 3 . | . . . . . Level 4 . | . . . . . Level 5 . | . . . . . High Security . | . . . . . Max Security . | . . . . . Squads Dispatched 2 | . . . 2 . Investigation 1 | . . . 1 . Extermination . | . . . . . Reinforcement 1 | . . . 1 . Assault . | . . . . . Garrison . | . . . . . Intercept . | . . . . . Searches Triggered . | . . . . . Construction Impeded . | . . . . . Haulers Reinforced . | . . . . . Active Scanning Responses . | . . . . . Cargo Convoy Interrupts . | . . . . . Stealth | -11 -10 -10 -9 -9 --------- Run | Yrd Mat Min Mat Min Distress Signals 3 | . . . 3 . Communications Jammed . | . . . . . Distress Signals . | . . . . . Times Spotted 79 | . 9 15 32 23 Peak Tracking Total 10 | . 3 3 7 10 Tactical Retreats 7 | . . 1 4 2 Traps | -11 -10 -10 -9 -9 ------- Run | Yrd Mat Min Mat Min Traps Triggered . | . . . . . Indirectly . | . . . . . Trap Hack Attempts . | . . . . . Triggered . | . . . . . Disarmed . | . . . . . Reprogrammed . | . . . . . Reused . | . . . . . Traps Extracted . | . . . . . Installed . | . . . . . Triggered . | . . . . . Machines | -11 -10 -10 -9 -9 ---------- Run | Yrd Mat Min Mat Min Machines Disabled 1 | . . . 1 . Max in Single Turn 1 | . . . 1 . Machines Repaired . | . . . . . Machines Dismantled . | . . . . . Machines Sabotaged . | . . . . . Overloaded Fab Kills . | . . . . . Hacking | -11 -10 -10 -9 -9 --------- Run | Yrd Mat Min Mat Min Machines Accessed 8 | . 4 . 4 . Terminals 7 | . 4 . 3 . Fabricators . | . . . . . Repair Stations . | . . . . . Recycling Units . | . . . . . Scanalyzers 1 | . . . 1 . Garrison Access . | . . . . . Total Hacks 28 | . 11 . 17 . Successful 10 | . 2 . 8 . Failed 18 | . 9 . 9 . Catastrophic 2 | . 1 . 1 . Database Lockouts . | . . . . . Manual 17 | . 9 . 8 . Terminals 20 | . 11 . 9 . Fabricators . | . . . . . Repair Stations . | . . . . . Recycling Units . | . . . . . Scanalyzers 8 | . . . 8 . Garrison Access . | . . . . . Terminal Hacks 1 | . . . 1 . Prototype ID Bank 1 | . . . 1 . Fabricator Hacks . | . . . . . Repair Station Hacks . | . . . . . Recycling Unit Hacks . | . . . . . Scanalyzer 5 | . . . 5 . Insert Component 2 | . . . 2 . Analyze 3 | . . . 3 . Garrison Access Hacks . | . . . . . Unauthorized Hacks 4 | . 2 . 2 . Terminals 4 | . 2 . 2 . Botnet 3 | . 2 . 1 . Operators 1 | . . . 1 . Fabricators . | . . . . . Repair Stations . | . . . . . Recycling Units . | . . . . . Scanalyzers . | . . . . . Garrison Access . | . . . . . Data Cores Recovered . | . . . . . Used . | . . . . . Hacking Detections 8 | . 4 . 4 . Full Trace Events 3 | . 1 . 2 . Feedback Events . | . . . . . Feedback Blocked . | . . . . . Robot Schematics Acquired . | . . . . . Robots Built . | . . . . . Authchips . | . . . . . Time . | . . . . . Total Robot Build Rating . | . . . . . Part Schematics Acquired . | . . . . . Parts Built . | . . . . . Authchips . | . . . . . Time . | . . . . . Total Part Build Rating . | . . . . . Parts Repaired . | . . . . . Time . | . . . . . Parts Recycled . | . . . . . Recycled Matter . | . . . . . Retrieved Matter . | . . . . . Retrieved Components . | . . . . . Parts Scanalyzed 1 | . . . 1 . Part Schematics Acquired . | . . . . . Parts Damaged 1 | . . . 1 . Bothacking | -11 -10 -10 -9 -9 ------------ Run | Yrd Mat Min Mat Min Used RIF Installer . | . . . . . Robots Hacked . | . . . . . Non-combat . | . . . . . Combat . | . . . . . Robot Hacks Applied . | . . . . . Relay Couplers Released . | . . . . . Fabnet Peak Effective % . | . . . . . Robots Rewired . | . . . . . Allies Hacked . | . . . . . Hacks Repelled . | . . . . . Allies | -11 -10 -10 -9 -9 -------- Run | Yrd Mat Min Mat Min Total Allies . | . . . . . Largest Group . | . . . . . Highest-Rated Group . | . . . . . Highest-Rated Ally . | . . . . . Total Orders . | . . . . . Ally Attacks . | . . . . . Total Damage . | . . . . . Kills . | . . . . . Allies Corrupted . | . . . . . Allies Melted . | . . . . . Intel | -11 -10 -10 -9 -9 ------- Run | Yrd Mat Min Mat Min Robot Analysis Total . | . . . . . Derelict Logs Recovered 1 | . . 1 . . Drone Launches . | . . . . . Drone Recoveries . | . . . . . Exploration | -11 -10 -10 -9 -9 ------------- Run | Yrd Mat Min Mat Min Turns Passed 3952 | . 642 1575 1281 454 Spaces Moved 1262 | 1 340 426 366 129 Core 27 | . . 22 . 5 Treads 580 | . . 90 366 124 Legs 655 | 1 340 314 . . Wheels . | . . . . . Hover . | . . . . . Flight . | . . . . . Fastest Speed 120 | 120 120 190 240 240 Average Speed 273 | 120 157 347 287 292 Slowest Speed 900 | 120 190 900 320 800 Overloaded Moves . | . . . . . Propulsion Burnouts . | . . . . . Robots Hopped . | . . . . . Cave-ins Triggered . | . . . . . Exploration Rate (%) 44 | 2 68 88 40 24 Regions Visited 4 Branch Regions 2 Pre-discovered Areas . | . . . . . Known Exits Taken . | . . . . . Unknown Exits Taken 4 | 1 1 1 1 . Scrap Searched 3 | . . 2 . 1 Spaces Dug . | . . . . . Terrain Destroyed 88 | . . . . 88 Melee . | . . . . . Projectile . | . . . . . AOE 88 | . . . . 88 Terrain Rammed . | . . . . . Walls Destroyed . | . . . . . Machines Disabled . | . . . . . Actions | -11 -10 -10 -9 -9 --------- Run | Yrd Mat Min Mat Min Total 1565 | . 404 483 507 171 Wait 60 | . 2 15 35 8 Move 1258 | . 339 425 365 129 Hop . | . . . . . Pick Up 39 | . 19 2 17 1 Fast Attach 13 | . 3 1 7 2 Attach 14 | . 2 4 4 4 Detach 4 | . 2 . 2 . Swap 7 | . 2 3 1 1 Drop 22 | . 11 1 10 . Fire 94 | . 18 25 31 20 Melee 54 | . 6 7 35 6 Ram . | . . . . . Kick . | . . . . . Crush . | . . . . . Escape Stasis . | . . . . . Rewire . | . . . . . Trap . | . . . . . Miscellaneous . | . . . . . Route ------- -11/Scrapyard -10/Materials (discovered 2 exits: *Mat / [*Min]) -10/Mines (discovered 2 exits: *Mat x2) -9/Materials (discovered 2 exits: [*Mat] / [*Min]) -9/Mines (discovered 1 exit: [*Mat]) History --------- Turn | Location | Event 1 | -11/Scrapyard | Discovered new exit (range 0) 1 | -11/Scrapyard | Entered Materials 104 | -10/Materials | Discovered new exit (range 15) 300 | -10/Materials | Build established: Mutant 394 | -10/Materials | Discovered new exit (range 11) 643 | -10/Materials | Entered Mines 868 | -10/Mines | Found a damaged Exp. Sensor Array with a note attached 874 | -10/Mines | Found Prototype Device 1218 | -10/Mines | Core integrity fell below 50% 1254 | -10/Mines | Lost 3 parts (1n1u1w) 1749 | -10/Mines | Learned Materials trap positions 1947 | -10/Mines | Discovered new exit (range 8) 2184 | -10/Mines | Discovered new exit (range 5) 2218 | -10/Mines | Entered Materials 2218 | -9/Materials | Evolved 2 slots: Propulsion x1, Utility x1 2218 | -9/Materials | Identified Exp. Sensor Array 2219 | -9/Materials | Loaded intel: 16 trap records 2410 | -9/Materials | Lost 3 parts (1p1n1u) 3196 | -9/Materials | Discovered new exit (range 3) 3404 | -9/Materials | Discovered new exit (range 13) 3499 | -9/Materials | Entered Mines 3620 | -9/Mines | Received a Rocket Launcher from a helpful Derelict 3688 | -9/Mines | Discovered new exit (range 4) 3713 | -9/Mines | Assembled infested the area 3786 | -9/Mines | Destroyed 19 combat bots 3890 | -9/Mines | Core integrity fell below 50% 3950 | -9/Mines | Core integrity fell below 20% 3953 | -9/Mines | Destroyed by D-53 Grenadier with Mini Grenade Launcher Last Messages --------------- U-05 Engineer builds a Wall. The unstable cave ceiling collapses. R-06 Scavenger collects Welding Torch. U-05 Engineer lays Concrete. U-05 Engineer builds a Wall. R-06 Scavenger collects Wheel. Sneak attack on R-06 Scavenger. R-06 Scavenger suffers critical hit (Smash). R-06 Scavenger destroyed. The unstable cave ceiling collapses. U-05 Engineer lays Concrete. U-05 Engineer builds a Wall. Acquired Cmb. Airjet. U-05 Engineer builds a Wall. D-53 Grenadier suffers critical hit (Burn). U-05 Engineer lays Concrete. The unstable cave ceiling collapses. U-05 Engineer builds a Wall. U-05 Engineer lays Concrete. The unstable cave ceiling collapses. Map ----- +----------------------------------------------------+ | ?????????????????????????????????????#####?????? | | ?????????????####??????????????????? ?????? | | ????????????## #???????????######## #?# #?????? | | ?????????#### ##?#####???# #?# #?????? | | ????????## #### ##??# ########?# #?????? | | ????????# ## #??# #?###????# #?????? | | ????????# #???# ### ##???# ##????? | | ?????????# ##### ## #??## ##???? | | ??????????# ## ## #### #???? | | ??????????###### ## ## ## ## #???? | | ???????????????## ## ##%# #???? | | ?????????????#?## ##### ##???? | | ???????########?# ##???####### ########????? | | ???????# #?# #######?????# ##???????????? | | ???????# ### ##??#?# #????????????? | | ???????+ ##### ##??## #????????????? | | ???????+ ### #???# #???# #????????????? | | ????? ?# #?# ##?## #??### ?##????????????? | | ???????# #?# #### ###??# #??????????????? | | ??????## #?# ##?## ##?????????????? | | ??#????# ########d #???# ???????????????? | | ???????###### ## #### ###?? ???????????????? | | ??????#?????# < #? ##???????????????? | | ??????#???### ## # ##??????????????????? | | ?????????## # # ### #?#??#???????????? | | ?????????#?## ## ## !@r u #????????????????? | | ????????????# # u #####???#????????????? | | ????????##### # #?#??????????????????? | | ???????##??# # # # #??????#?????????????? | | ?????#?#???# # # ####???????????????????? | | ??#?#??#??### # ###?#??#?????????????????? | | ??????????# ######????????????????????????? | | ???#?#????# ######?#?##?#??????????????????????? | | ???###????# #????#??#????????#????#????????????? | | ???# ##### #???##??#????#?????????????????????? | | ??# #??#??#?????????#???#??????????????? | | ?# "######??##??#?????##????????????????????? | | ?# #????????#??#???????????????????????????? | | ?# ##?#???????????##??#?????????????????????? | | ?## #???#?????? ?????? ???????????????????????? | | ??###?????#????????????????????????????????????? | | ???????????????????????????????????????????????? | | ??#???????????????#????????????????????????????? | | ?????????????? ????????????????????????????????? | | ??????#? ??????????????????????????????????????? | | ???????????????????????????????????????????????? | | ?#?????????????????????????????????????????????? | | ???????????????????????????????????????????????? | | ?????#?????????????????????????????????????????? | | ???????????????????????????????????????????????? | +----------------------------------------------------+ Best States ------------- Heat Dissipation 50 Energy Generation 14 Energy Capacity 275 Matter Stores 300 Matter Capacity 300 Sight Range 16 Robot Scan Range 14 Terrain Scan Range 14 Terrain Scan Density 10 ECM Strength 1 Armor Coverage 150 Evasion (%) 55 Recoil Reduction 2 Item Schematics ----------------- None Robot Schematics ------------------ None Fabricated ------------ Nothing Alien Tech Used ----------------- None Achievements -------------- None Challenges ------------ None Game ------ Seed BeamExperimentalImmobilizer Manual? 0 Play Time 00:26:38 Cumulative 49.8 hours Start 2024.05.01 @ 18:43:31 End 2024.05.01 @ 19:07:11 Sessions 1 Manual Loads 0 Difficulty Rogue Special Mode None Game No. 49 Rogue 49 Adventurer 0 Explorer 0 Win Type - Total 2 Types 1/0/0/1/0/0/0/0/0 Lore% 48 Gallery% 36 Achievement% 36 Wizard Run 0 Options --------- Layout 1 ASCII 0 Keyboard 1 Movement Numpad Keybinds 0 Fullscreen 2 Font 20/SmallcapsGlow Map View 54x42 Zoom Use 0% Tactical HUD 0 Map Filters NONE Filters NONE Steam 1 RUN: 69d4558b-d699-4913-a8a4-3f69d9f9c1dd